bitfinex/quotes_BTCUSD_20251219
["timestamp","ask_amount","ask_price","bid_price","bid_amount"]
[1766161588059,0.71354,88477.0,88459.0,0.01]
[1766161588242,0.0113025,88476.0,88460.0,0.0025]
[1766161588641,0.27280237,88477.0,88460.0,0.0025]
[1766161588957,0.01130275,88474.0,88460.0,0.0025]
[1766161589139,0.01130262,88475.0,88460.0,0.0025]
[1766161589345,0.01130275,88474.0,88460.0,0.0025]
[1766161589546,0.01130288,88473.0,88460.0,0.0025]
[1766161589945,0.01130275,88474.0,88460.0,0.0025]
[1766161590150,0.06781707,88474.0,88460.0,0.0025]
[1766161590544,0.05651315,88475.0,88460.0,0.0025]
[1766161590728,0.0113025,88476.0,88460.0,0.0025]
[1766161590930,0.01130275,88474.0,88460.0,0.0025]
[1766161591355,0.77005216,88477.0,88460.0,0.0025]
[1766161591557,0.71354,88477.0,88460.0,0.0025]
[1766161591759,0.2615,88477.0,88462.0,0.01130428]
[1766161591969,0.01139619,88479.0,88462.0,0.0025]
[1766161592171,9.408e-05,88479.0,88462.0,0.01380428]
[1766161592454,9.408e-05,88479.0,88462.0,0.0025]
[1766161592691,0.01139619,88479.0,88462.0,0.0025]
[1766161592873,9.408e-05,88479.0,88464.0,0.0025]
[1766161593073,0.01130224,88478.0,88466.0,0.0025]
[1766161593304,0.06781481,88477.0,88466.0,0.0025]
[1766161593533,9.408e-05,88479.0,88466.0,0.0025]
[1766161593534,0.71354,88470.0,88466.0,0.0025]
[1766161593960,0.01130339,88469.0,88466.0,0.0025]
[1766161594090,0.72484326,88470.0,88466.0,0.0025]
[1766161594697,0.71354,88470.0,88465.0,0.00568]
[1766161594897,0.2615,88470.0,88465.0,0.00568]
[1766161595299,0.27280326,88470.0,88465.0,0.00568]
[1766161595495,0.01130339,88469.0,88465.0,0.00568]
[1766161596004,0.2615,88470.0,88465.0,0.00568]
[1766161596174,0.7592625,88476.0,88465.0,0.00568]
[1766161596331,0.74796,88476.0,88465.0,0.00568]
[1766161596533,0.49517275,88474.0,88465.0,0.00568]
[1766161596734,0.26409,88471.0,88465.0,0.00568]
[1766161596941,0.05651759,88469.0,88465.0,0.00568]
[1766161597426,0.06781963,88470.0,88465.0,0.00568]
[1766161597651,0.01130326,88470.0,88465.0,0.00568]
[1766161598082,0.01130339,88469.0,88465.0,0.00568]
[1766161598281,0.01130364,88467.0,88451.0,0.0125]
[1766161598486,0.74796,88464.0,88453.0,0.0125]
[1766161598688,0.75926403,88464.0,88453.0,0.0025]
[1766161598896,0.74796,88464.0,88453.0,0.0025]
[1766161599107,0.81577971,88470.0,88453.0,0.0025]
[1766161599310,0.48387,88469.0,88453.0,0.0025]
[1766161599576,0.74796,88469.0,88453.0,0.0025]
[1766161599732,0.26409,88469.0,88455.0,0.0025]
[1766161599940,0.26409,88469.0,88453.0,0.0025]
[1766161600146,0.26409,88469.0,88453.0,0.07033231]
[1766161600390,0.26409,88469.0,88456.0,0.01380505]
[1766161600626,0.26409,88469.0,88456.0,0.01130505]
[1766161600831,0.26409,88469.0,88459.0,0.0025]
[1766161601028,0.26409,88469.0,88459.0,0.00818]
[1766161601362,0.06100609,88517.0,88459.0,0.00818]
[1766161601363,9.408e-05,88479.0,88469.0,0.001099]
[1766161601499,0.01139619,88479.0,88470.0,0.00568]
[1766161601704,0.06790685,88479.0,88470.0,0.00568]
[1766161602110,9.408e-05,88479.0,88470.0,0.00568]
[1766161602927,0.01130224,88478.0,88470.0,0.00568]
[1766161603392,0.01130237,88477.0,88470.0,0.00568]
[1766161603550,0.01130224,88478.0,88470.0,0.00568]
[1766161603727,0.06790733,88479.0,88470.0,0.00568]
[1766161603951,9.408e-05,88479.0,88470.0,0.00568]
[1766161605719,0.0113025,88476.0,88470.0,0.00568]
[1766161606168,0.06781576,88475.0,88470.0,0.00568]
[1766161606361,0.01130262,88475.0,88470.0,0.00568]
[1766161606977,0.48387,88478.0,88470.0,0.00568]
[1766161607477,0.26418408,88479.0,88470.0,0.00568]
[1766161608890,0.55735963,88483.0,88470.0,0.00568]
[1766161609092,0.50092108,88483.0,88470.0,0.00568]
[1766161609423,0.55742922,88483.0,88470.0,0.00568]
[1766161609967,0.50092108,88483.0,88470.0,0.00568]
[1766161610380,0.01130173,88482.0,88470.0,0.00568]
[1766161610625,0.50092108,88483.0,88470.0,0.00568]
[1766161610827,0.06781047,88482.0,88470.0,0.00568]
[1766161611212,0.01130173,88482.0,88470.0,0.00568]
[1766161611780,0.06781068,88482.0,88470.0,0.00568]
[1766161612012,0.01130186,88481.0,88470.0,0.00568]
[1766161612216,0.01130198,88480.0,88470.0,0.00568]
[1766161612416,0.01130224,88478.0,88470.0,0.00568]
[1766161612748,0.01130211,88479.0,88470.0,0.00568]
[1766161612929,0.01130288,88473.0,88470.0,0.004581]
[1766161613135,0.06781731,88473.0,88470.0,0.004581]
[1766161613745,0.01130288,88473.0,88470.0,0.004581]
[1766161614168,0.01130288,88473.0,88457.0,0.06058805]
[1766161614169,0.74796,88468.0,88458.0,0.0025]
[1766161614367,0.26409,88468.0,88460.0,0.00568]
[1766161614565,0.01130326,88470.0,88460.0,0.00568]
[1766161614764,0.48387,88473.0,88460.0,0.00568]
[1766161614970,0.26409,88474.0,88460.0,0.00568]
[1766161615142,0.26409,88474.0,88462.0,0.0025]
[1766161615666,0.00568,88476.0,88465.0,0.0138039]
[1766161615866,0.00568,88481.0,88474.0,0.001099]
[1766161616251,0.00568,88481.0,88463.0,0.06782483]
[1766161616252,0.48955,88481.0,88464.0,0.0025]
[1766161616537,0.48955,88481.0,88464.0,0.01380403]
[1766161616715,0.50085186,88481.0,88465.0,0.0025]
[1766161616887,0.48955,88481.0,88465.0,0.0025]
[1766161617087,0.50085186,88481.0,88465.0,0.0025]
[1766161617287,0.49517198,88480.0,88465.0,0.0025]
[1766161617841,0.01130211,88479.0,88465.0,0.0025]
[1766161618043,0.55168198,88480.0,88465.0,0.0025]
[1766161618368,0.49517198,88480.0,88465.0,0.0025]
[1766161618644,0.82145165,88481.0,88465.0,0.0025]
[1766161618788,0.74796,88480.0,88465.0,0.0025]
[1766161619340,0.74796,88480.0,88466.0,0.01130377]
[1766161619543,0.74796,88480.0,88465.0,0.07032322]
[1766161619750,0.74796,88480.0,88466.0,0.06782263]
[1766161619927,0.74796,88480.0,88465.0,0.0025]
[1766161620130,0.74796,88480.0,88464.0,0.0025]
[1766161620324,0.74796,88480.0,88464.0,0.01380403]
[1766161620526,0.74796,88480.0,88464.0,0.0025]
[1766161620766,0.75926198,88480.0,88464.0,0.0025]
[1766161620967,0.74796,88480.0,88464.0,0.0025]
[1766161621200,0.01130313,88471.0,88464.0,0.0025]
[1766161621424,0.48387,88480.0,88464.0,0.0025]
[1766161621627,0.00568,88481.0,88471.0,0.001099]
[1766161621841,0.00568,88481.0,88464.0,0.0025]
[1766161622040,0.07349123,88481.0,88464.0,0.0025]
[1766161622219,0.00568,88481.0,88464.0,0.0025]
[1766161622577,0.00568,88481.0,88464.0,0.07032355]
[1766161622779,0.00568,88481.0,88467.0,0.05651799]
[1766161623013,6.948e-05,88483.0,88464.0,0.0025]
[1766161623237,0.48387,88517.0,88493.0,0.0025]
[1766161623463,0.48387,88517.0,88500.0,0.76856654]
[1766161623464,0.00010847,88517.0,88500.0,0.76856654]
[1766161623635,0.00010847,88517.0,88495.0,0.01]
[1766161623636,0.0112979,88512.0,88495.0,0.01]
[1766161624057,0.01129841,88508.0,88496.0,0.00568]
[1766161624427,0.00568,88516.0,88497.0,0.00568]
[1766161624608,0.22593682,88521.0,88497.0,0.00568]
[1766161624609,0.00568,88525.0,88508.0,0.00094545]
[1766161624808,0.00568,88525.0,88508.0,0.00568]
[1766161624947,0.01697624,88525.0,88508.0,0.00568]
[1766161625316,0.01129637,88524.0,88509.0,0.0025]
[1766161625649,0.00011152,88516.0,88509.0,0.0025]
[1766161626098,5.2e-07,88516.0,88509.0,0.0025]
[1766161627386,0.05649589,88502.0,88501.0,0.01]
[1766161627591,0.05649589,88502.0,88481.0,0.06231489]
[1766161627592,0.01129956,88499.0,88493.0,0.04524]
[1766161627811,0.01129981,88497.0,88494.0,0.00568]
[1766161628011,0.06779894,88497.0,88494.0,0.00568]
[1766161628215,0.06779894,88497.0,88484.0,0.01]
[1766161628216,0.0113002,88494.0,88484.0,0.01]
[1766161628419,0.0113002,88494.0,88487.0,0.00568]
[1766161628613,0.06779921,88497.0,88487.0,0.00568]
[1766161628750,0.01129994,88496.0,88487.0,0.00568]
[1766161629167,0.01130007,88495.0,88487.0,0.00568]
[1766161629369,0.06780056,88495.0,88487.0,0.00568]
[1766161629574,0.01130058,88491.0,88484.0,0.00568]
[1766161629889,0.01130109,88487.0,88484.0,0.00568]
[1766161630091,0.06780509,88489.0,88485.0,0.0025]
[1766161630319,0.01130071,88490.0,88484.0,0.00568]
[1766161630613,0.2398602,88494.0,88485.0,0.0025]
[1766161630854,0.22856,88494.0,88485.0,0.0025]
[1766161631082,0.05001839,88530.0,88494.0,0.000834]
[1766161631300,0.01129573,88529.0,88510.0,0.0025]
[1766161631545,0.01129637,88524.0,88511.0,0.00568]
[1766161631751,0.01129713,88518.0,88510.0,0.0025]
[1766161631922,0.000265,88511.0,88508.0,0.00568]
[1766161632127,0.000265,88511.0,88506.0,0.00568]
[1766161632531,0.50547,88512.0,88506.0,0.00568]
[1766161632738,0.01129752,88515.0,88506.0,0.00568]
[1766161632911,0.22856,88516.0,88506.0,0.00568]
[1766161633119,0.23985739,88516.0,88506.0,0.00568]
[1766161633325,0.06778744,88512.0,88495.0,0.01]
[1766161633527,0.01129764,88514.0,88498.0,0.01]
[1766161633722,0.01129764,88514.0,88500.0,0.01]
[1766161633723,0.06778821,88511.0,88500.0,0.01]
[1766161633900,0.73403,88513.0,88503.0,0.0025]
[1766161636912,0.73403,88513.0,88502.0,0.0025]
[1766161637126,0.79051889,88513.0,88501.0,0.00568]
[1766161637522,0.73403,88513.0,88502.0,0.0025]
[1766161638038,0.01129803,88511.0,88503.0,0.00568]
[1766161638270,0.82050741,88512.0,88503.0,0.00568]
[1766161638642,0.51911,88511.0,88503.0,0.00568]
[1766161640053,0.01129855,88510.0,88503.0,0.00568]
[1766161641942,0.01046455,88510.0,88503.0,0.00568]
[1766161642547,0.01046455,88510.0,88484.0,0.01130147]
[1766161642756,0.72405689,88503.0,88492.0,0.01]
[1766161642968,0.01129917,88502.0,88492.0,0.01]
[1766161643165,0.2449093,88501.0,88494.0,0.01]
[1766161643472,0.2449093,88501.0,88483.0,0.06780946]
[1766161643473,0.01129956,88499.0,88479.0,0.01130211]
[1766161643680,0.01130007,88495.0,88481.0,0.01]
[1766161643893,0.08741987,88494.0,88482.0,0.00568]
[1766161644131,0.08741987,88494.0,88483.0,0.01]
[1766161644512,0.08632087,88494.0,88484.0,0.00568]
[1766161644917,0.08632087,88494.0,88485.0,0.0025]
[1766161645723,0.04130087,88494.0,88485.0,0.01130135]
[1766161645934,0.04130087,88494.0,88486.0,0.0025]
[1766161646991,0.70706957,88491.0,88476.0,0.0125]
[1766161647209,0.01130237,88477.0,88466.0,0.01]
[1766161647424,0.01130237,88477.0,88448.0,0.00568]
[1766161647425,0.01130467,88459.0,88448.0,0.00568]
[1766161647631,0.01130403,88464.0,88448.0,0.00604187]
[1766161647632,0.0113048,88458.0,88448.0,0.00604187]
[1766161647836,0.06782959,88457.0,88448.0,0.00604187]
[1766161648023,0.06782882,88458.0,88448.0,0.00604187]
[1766161648270,0.067829,88458.0,88448.0,0.00604187]
[1766161648473,0.0113048,88458.0,88448.0,0.00604187]
[1766161648646,0.01130505,88456.0,88448.0,0.00604187]
[1766161648845,0.06782881,88458.0,88448.0,0.00604187]
[1766161649087,0.23361,88459.0,88448.0,0.00604187]
[1766161649289,0.04130087,88463.0,88458.0,0.001099]
[1766161649482,0.04130087,88463.0,88451.0,0.0025]
[1766161649683,0.04130087,88463.0,88449.0,0.01130595]
[1766161649874,0.04130087,88463.0,88450.0,0.0025]
[1766161650078,0.04130087,88463.0,88448.0,0.00604187]
[1766161650079,0.01130454,88460.0,88448.0,0.00604187]
[1766161650280,0.04130087,88463.0,88449.0,0.0025]
[1766161650442,0.01130492,88457.0,88449.0,0.0025]
[1766161650621,0.06782903,88458.0,88449.0,0.0025]
[1766161650831,0.0113048,88458.0,88449.0,0.0025]
[1766161651048,0.06782803,88459.0,88449.0,0.0025]
[1766161651254,0.01130505,88456.0,88449.0,0.0025]
[1766161651465,0.01130492,88457.0,88449.0,0.0025]
[1766161651666,0.06782976,88457.0,88449.0,0.0025]
[1766161651843,0.05652911,88450.0,88448.0,0.00036187]
[1766161652050,0.05652911,88450.0,88448.0,1e-08]
[1766161652051,0.80924975,88449.0,88448.0,1e-08]
[1766161652854,0.81174975,88449.0,88448.0,1e-08]
[1766161653356,0.01130722,88439.0,88431.0,0.00568]
[1766161653649,0.01130735,88438.0,88431.0,0.00577408]
[1766161654056,0.06784793,88434.0,88431.0,9.408e-05]
[1766161654260,0.01130837,88430.0,88421.0,0.01]
[1766161654469,0.0113085,88429.0,88422.0,0.0025]
[1766161654675,0.87250515,88431.0,88415.0,0.00568]
[1766161654875,0.48078,88425.0,88416.0,0.0025]
[1766161655254,0.479681,88425.0,88416.0,0.0025]
[1766161655654,0.1715928,88424.0,88416.0,0.0025]
[1766161656116,0.1715928,88424.0,88404.0,0.0213117]
[1766161656323,0.001099,88416.0,88410.0,0.00568]
[1766161656491,0.001099,88416.0,88408.0,0.00568]
[1766161656688,0.06785719,88421.0,88409.0,0.0025]
[1766161656905,0.01130953,88421.0,88409.0,0.0025]
[1766161657122,0.5256368,88422.0,88409.0,0.0025]
[1766161657337,0.49208991,88418.0,88408.0,0.00568]
[1766161657546,0.01131093,88410.0,88401.0,0.04524]
[1766161657763,0.01131093,88410.0,88398.0,0.00568]
[1766161657764,0.48078,88408.0,88398.0,0.00568]
[1766161657986,0.7089,88407.0,88399.0,0.0025]
[1766161658184,0.7089,88407.0,88399.0,0.00260861]
[1766161658662,0.00568,88413.0,88399.0,0.00260861]
[1766161658853,0.09935087,88412.0,88400.0,0.0025]
[1766161659235,0.58013087,88412.0,88399.0,0.00010861]
[1766161659452,0.22812,88411.0,88400.0,0.0025]
[1766161659667,0.22812,88411.0,88399.0,0.01142095]
[1766161660124,0.22812,88411.0,88400.0,0.0025]
[1766161660339,0.09935087,88412.0,88400.0,0.01381221]
[1766161660606,8.7e-07,88412.0,88404.0,0.0113117]
[1766161660756,8.7e-07,88412.0,88408.0,0.01131119]
[1766161660953,8.7e-07,88412.0,88409.0,0.01131106]
[1766161661167,8.7e-07,88412.0,88409.0,0.06786614]
[1766161661372,8.7e-07,88412.0,88410.0,0.0565541]
[1766161661890,1.99827943,88424.0,88415.0,0.0025]
[1766161662930,1.99827943,88424.0,88414.0,0.0025]
[1766161663704,2.71848857,88424.0,88414.0,0.0025]
[1766161663913,0.01130991,88418.0,88414.0,0.001401]
[1766161664114,0.01130978,88419.0,88413.0,0.00568]
[1766161664312,0.01131017,88416.0,88408.0,0.00568]
[1766161664515,0.02262059,88412.0,88399.0,0.00010861]
[1766161664716,0.02262059,88412.0,88400.0,0.00568]
[1766161665726,0.02262059,88412.0,88400.0,0.07355266]
[1766161665941,0.02262059,88412.0,88401.0,0.05656037]
[1766161666138,0.02262059,88412.0,88402.0,0.0025]
[1766161666551,0.02262059,88412.0,88402.0,0.01381196]
[1766161666730,0.02262059,88412.0,88402.0,0.0025]
[1766161666909,0.02262059,88412.0,88400.0,0.00568]
[1766161667122,0.02262059,88412.0,88401.0,0.01131208]
[1766161667346,0.02262059,88412.0,88403.0,0.01131183]
[1766161667695,0.02262059,88412.0,88404.0,0.0113117]
[1766161668133,0.02262059,88412.0,88402.0,0.01131196]
[1766161668347,0.02262059,88412.0,88404.0,0.0113117]
[1766161668549,0.02262059,88412.0,88403.0,0.01131183]
[1766161668751,0.02262059,88412.0,88405.0,0.05655741]
[1766161668958,0.02152159,88412.0,88407.0,0.01131132]
[1766161669171,0.02152159,88412.0,88411.0,0.05655404]
[1766161669172,0.01024159,88412.0,88411.0,0.05655404]
[1766161669573,0.01024159,88412.0,88410.0,0.05655468]
[1766161669574,1.99827943,88424.0,88414.0,0.01131042]
[1766161670001,1.99827943,88424.0,88412.0,0.01131068]
[1766161670161,1.99827943,88424.0,88413.0,0.01131055]
[1766161670362,1.99827943,88424.0,88415.0,0.01131029]
[1766161670626,1.99827943,88424.0,88415.0,0.00568]
[1766161672002,1.98827943,88424.0,88415.0,0.00568]
[1766161673692,1.98827943,88424.0,88415.0,0.01699029]
[1766161673900,1.98827943,88424.0,88417.0,0.01131004]
[1766161674106,1.98827943,88424.0,88416.0,0.01381017]
[1766161674396,1.98827943,88424.0,88418.0,0.01130991]
[1766161674600,1.98827943,88424.0,88417.0,0.01131004]
[1766161674812,1.98827943,88424.0,88421.0,0.01130953]
[1766161675014,1.06455011,88424.0,88423.0,0.05654637]
[1766161675218,0.66747579,88424.0,88423.0,0.05654637]
[1766161675433,0.22804485,88424.0,88422.0,0.00568]
[1766161675635,0.00568,88439.0,88422.0,0.00568]
[1766161675878,0.06784413,88438.0,88422.0,0.00568]
[1766161676082,0.01130735,88438.0,88422.0,0.00568]
[1766161676289,0.06784441,88438.0,88422.0,0.00568]
[1766161676610,0.00568,88439.0,88422.0,0.00568]
[1766161677016,0.00568,88439.0,88422.0,0.0169894]
[1766161677215,0.00568,88439.0,88422.0,0.07353585]
[1766161677413,0.00568,88439.0,88423.0,0.01130927]
[1766161677671,0.00568,88439.0,88422.0,0.0169894]
[1766161677955,0.00568,88439.0,88424.0,0.01130914]
[1766161678145,0.00568,88439.0,88423.0,0.01130927]
[1766161678373,0.00568,88439.0,88424.0,0.01130914]
[1766161678524,0.00568,88439.0,88422.0,0.07353593]
[1766161678525,0.00568,88439.0,88428.0,0.01130863]
[1766161678725,0.00568,88439.0,88428.0,0.0025]
[1766161679707,0.06784499,88437.0,88428.0,0.001401]
[1766161679923,0.72599566,88439.0,88428.0,0.001401]
[1766161680113,0.71468844,88439.0,88428.0,0.001401]
[1766161680313,0.00578844,88439.0,88428.0,0.001401]
[1766161680739,0.00578844,88439.0,88425.0,0.06785404]
[1766161680959,0.00010844,88439.0,88430.0,0.01130837]
[1766161681139,0.00010844,88439.0,88436.0,0.01130761]
[1766161681140,4.4e-07,88439.0,88436.0,0.01130761]
[1766161681336,4.4e-07,88439.0,88438.0,0.06653678]
[1766161681824,4.4e-07,88439.0,88438.0,0.06903678]
[1766161682036,0.00568,88464.0,88450.0,0.05652883]
[1766161682234,0.00568,88464.0,88451.0,0.00568]
[1766161682235,0.00036187,88464.0,88451.0,0.00568]
[1766161682867,0.00036187,88464.0,88451.0,0.01698569]
[1766161683076,0.22812,88486.0,88465.0,0.0113039]
[1766161683316,0.01130135,88485.0,88466.0,0.07350259]
[1766161683519,0.0025,88484.0,88466.0,0.00568]
[1766161683726,0.01130135,88485.0,88462.0,0.0025]
[1766161683727,0.01130237,88477.0,88462.0,0.0025]
[1766161683914,0.000108,88466.0,88462.0,0.0025]
[1766161684087,0.73335,88472.0,88462.0,0.0025]
[1766161684270,0.08586794,88471.0,88462.0,0.0025]
[1766161684680,0.06782049,88469.0,88462.0,0.002392]
[1766161684880,0.58353144,88468.0,88461.0,3e-07]
[1766161685148,0.76828,88467.0,88461.0,3e-07]
[1766161685894,0.25257,88482.0,88467.0,0.001099]
[1766161686347,0.25257,88482.0,88465.0,0.0113039]
[1766161686554,0.25257,88482.0,88466.0,0.01130377]
[1766161686753,0.25257,88482.0,88467.0,0.01130364]
[1766161686998,0.0025,88483.0,88468.0,0.01698352]
[1766161687200,0.0025,88483.0,88468.0,0.00568]
[1766161688008,0.0025,88485.0,88470.0,0.01130326]
[1766161688222,0.07030854,88485.0,88468.0,0.00568]
[1766161688830,0.01130147,88484.0,88468.0,0.00568]
[1766161689035,0.0025,88485.0,88468.0,0.00568]
[1766161689734,0.01380135,88485.0,88468.0,0.00568]
[1766161689938,0.01130147,88484.0,88468.0,0.00568]
[1766161690128,0.01380135,88485.0,88468.0,0.00568]
[1766161690686,0.01140976,88486.0,88468.0,0.00568]
[1766161690910,0.01130135,88485.0,88468.0,0.00568]
[1766161691374,0.01140976,88486.0,88468.0,0.00568]
[1766161691644,0.01130135,88485.0,88468.0,0.00568]
[1766161692351,0.01130147,88484.0,88468.0,0.00568]
[1766161692544,0.0113016,88483.0,88468.0,0.00568]
[1766161692889,0.01130135,88485.0,88468.0,0.00568]
[1766161693085,0.06791588,88486.0,88468.0,0.01698352]
[1766161693309,0.01130135,88485.0,88468.0,0.00568]
[1766161693530,0.05650939,88481.0,88468.0,0.00568]
[1766161693733,0.76828,88475.0,88464.0,0.0025]
[1766161693942,0.01130288,88473.0,88464.0,0.0025]
[1766161694291,0.76828,88475.0,88464.0,0.0025]
[1766161694538,0.01698186,88481.0,88464.0,0.0025]
[1766161694766,0.01698186,88481.0,88468.0,0.06782088]
[1766161694767,0.00568,88481.0,88468.0,0.06782088]
[1766161694982,0.00578854,88486.0,88468.0,0.01130352]
[1766161695347,0.01130135,88485.0,88467.0,0.06782129]
[1766161695548,0.00578854,88486.0,88470.0,0.06781915]
[1766161695749,0.00578854,88486.0,88465.0,0.0025]
[1766161696032,0.01130135,88485.0,88467.0,0.0025]
[1766161696277,0.01130147,88484.0,88467.0,0.0025]
[1766161696687,0.06780812,88485.0,88467.0,0.0025]
[1766161696865,0.00578854,88486.0,88467.0,0.05901764]
[1766161697059,0.01708976,88486.0,88468.0,0.05651699]
[1766161697262,0.01130135,88485.0,88467.0,0.01380364]
[1766161697460,0.07359641,88486.0,88467.0,0.01380364]
[1766161697461,0.00578854,88486.0,88470.0,0.01130326]
[1766161697665,0.00578854,88486.0,88467.0,0.01380364]
[1766161697666,0.01708976,88486.0,88471.0,0.00568]
[1766161697913,0.07359604,88486.0,88471.0,0.00568]
[1766161698223,0.01708976,88486.0,88471.0,0.00568]
[1766161698471,0.01130135,88485.0,88471.0,0.00568]
[1766161698666,0.01130147,88484.0,88471.0,0.00568]
[1766161698899,0.00578854,88486.0,88471.0,0.00568]
[1766161699095,0.01129981,88497.0,88484.0,0.001099]
[1766161699298,6.948e-05,88497.0,88484.0,0.001099]
[1766161699505,6.948e-05,88497.0,88481.0,0.00568]
[1766161700065,0.01129994,88496.0,88481.0,0.00568]
[1766161700262,0.01136929,88497.0,88481.0,0.00568]
[1766161700670,6.948e-05,88497.0,88482.0,0.06781015]
[1766161701074,6.948e-05,88497.0,88483.0,0.0113016]
[1766161701477,6.948e-05,88497.0,88482.0,0.01130173]
[1766161701651,6.948e-05,88497.0,88481.0,0.00568]
[1766161701851,0.05650169,88493.0,88481.0,0.00568]
[1766161702081,0.01130045,88492.0,88481.0,0.00568]
[1766161702276,0.06780286,88492.0,88481.0,0.00568]
[1766161702443,0.01130058,88491.0,88481.0,0.00568]
[1766161702848,0.06780275,88492.0,88481.0,0.00568]
[1766161703102,6.948e-05,88497.0,88463.0,0.0125]
[1766161703306,0.06780504,88489.0,88476.0,0.0025]
[1766161703459,0.01130096,88488.0,88478.0,0.0025]
[1766161703869,0.01130096,88488.0,88445.0,0.53812148]
[1766161703870,0.01130301,88472.0,88452.0,0.01130556]
[1766161704238,0.01130288,88473.0,88456.0,0.01]
[1766161704395,0.32197716,88474.0,88456.0,0.01]
[1766161704568,0.01130275,88474.0,88456.0,0.02130505]
[1766161704768,0.01130262,88475.0,88457.0,0.06782952]
[1766161705341,0.00568,88477.0,88455.0,0.00568]
[1766161705544,0.06781968,88470.0,88455.0,0.00568]
[1766161705871,0.06781968,88470.0,88456.0,0.0025]
[1766161706074,0.05651377,88474.0,88456.0,0.0125]
[1766161706278,0.05651505,88472.0,88456.0,0.0125]
[1766161706477,0.01130301,88472.0,88456.0,0.0125]
[1766161706707,0.01130262,88475.0,88457.0,0.0025]
[1766161706907,0.55001275,88474.0,88459.0,0.0025]
[1766161707105,0.25416,88476.0,88459.0,0.0025]
[1766161707923,0.06781357,88478.0,88459.0,0.01380467]
[1766161708125,0.01130237,88477.0,88459.0,0.06782776]
[1766161708331,0.01130237,88477.0,88460.0,0.0025]
[1766161708528,0.01130262,88475.0,88460.0,0.0025]
[1766161708730,0.01130288,88473.0,88460.0,0.0025]
[1766161708906,0.01130224,88478.0,88460.0,0.0025]
[1766161709696,0.06781427,88477.0,88460.0,0.0025]
[1766161709894,0.01130237,88477.0,88460.0,0.0025]
[1766161710102,0.0113025,88476.0,88460.0,0.0025]
[1766161710303,0.05651121,88479.0,88460.0,0.05902271]
[1766161710504,0.01130224,88478.0,88461.0,0.01380441]
[1766161710701,0.06781331,88479.0,88461.0,0.0025]
[1766161710926,0.0113025,88476.0,88462.0,0.00568]
[1766161711127,0.01130262,88475.0,88462.0,0.00568]
[1766161711463,0.01130275,88474.0,88462.0,0.00568]
[1766161711810,0.25416,88512.0,88493.0,0.01130032]
[1766161712006,0.0001085,88512.0,88499.0,0.08586794]
[1766161712983,0.0114064,88512.0,88499.0,0.08586794]
[1766161713170,0.067789,88510.0,88500.0,0.00568]
[1766161713449,0.01129815,88510.0,88500.0,0.00568]
[1766161713850,0.7929785,88512.0,88500.0,0.00568]
[1766161714615,0.8042764,88512.0,88500.0,0.00568]
[1766161714820,0.7929785,88512.0,88500.0,0.00568]
[1766161715133,0.8042764,88512.0,88500.0,0.00568]
[1766161715333,0.7929785,88512.0,88500.0,0.00568]
[1766161716314,0.01129841,88508.0,88500.0,0.00568]
[1766161716515,0.01129866,88506.0,88495.0,0.0025]
[1766161716740,0.01129866,88506.0,88497.0,0.0025]
[1766161717157,0.0677905,88508.0,88497.0,0.0025]
[1766161717334,0.01129841,88508.0,88497.0,0.0025]
[1766161717744,0.06778975,88509.0,88497.0,0.0025]
[1766161717948,0.7929785,88512.0,88497.0,0.0025]
[1766161717949,0.5701364,88512.0,88497.0,0.0025]
[1766161718147,0.06778894,88510.0,88497.0,0.0025]
[1766161718347,0.01129828,88509.0,88497.0,0.0025]
[1766161718672,0.05649307,88507.0,88497.0,0.0025]
[1766161719010,0.06779051,88508.0,88497.0,0.0025]
[1766161719223,0.01129917,88502.0,88489.0,0.0025]
[1766161719424,0.55873,88504.0,88491.0,0.0025]
[1766161719560,0.01129828,88509.0,88502.0,0.001099]
[1766161719764,0.06778895,88510.0,88491.0,0.0025]
[1766161719975,0.06778989,88509.0,88491.0,0.0025]
[1766161720379,0.0677887,88511.0,88491.0,0.0025]
[1766161720599,0.05649015,88511.0,88491.0,0.0025]
[1766161720799,0.01129815,88510.0,88491.0,0.01380058]
[1766161721125,0.01129841,88508.0,88491.0,0.0025]
[1766161721988,0.31818598,88512.0,88492.0,0.01130045]
[1766161722189,0.01129815,88510.0,88491.0,0.07030288]
[1766161722412,0.01129828,88509.0,88491.0,0.0025]
[1766161722707,0.01129841,88508.0,88491.0,0.0025]
[1766161723737,0.06779236,88506.0,88491.0,0.0025]
[1766161723939,0.23726547,88509.0,88492.0,0.00568]
[1766161723940,0.05868514,88501.0,88492.0,0.00568]
[1766161724554,0.19160486,88502.0,88492.0,0.00568]
[1766161725839,0.62652102,88508.0,88492.0,0.00568]
[1766161726040,0.00568,88513.0,88500.0,0.01129943]
[1766161726245,0.80902,88518.0,88508.0,0.001099]
[1766161726475,0.80902,88518.0,88501.0,0.0169793]
[1766161726818,0.05648772,88515.0,88501.0,0.00568]
[1766161726970,0.01129815,88510.0,88501.0,0.00568]
[1766161727524,0.05649278,88507.0,88501.0,0.00568]
[1766161727809,0.76416589,88504.0,88502.0,0.00568]
[1766161728367,0.20543589,88504.0,88502.0,0.00568]
[1766161728989,0.20543589,88504.0,88500.0,0.00568]
[1766161729211,0.0114064,88512.0,88500.0,0.00568]
[1766161729412,0.05659808,88512.0,88500.0,0.00568]
[1766161731516,0.26158815,88510.0,88499.0,0.00568]
[1766161731936,0.25029,88510.0,88499.0,0.00568]
[1766161732165,0.0001085,88512.0,88499.0,0.00568]
[1766161732408,0.0001085,88512.0,88499.0,0.01697956]
[1766161732614,5e-07,88512.0,88499.0,0.00568]
[1766161732836,5e-07,88512.0,88499.0,0.01697956]
[1766161733084,5e-07,88512.0,88500.0,0.01129943]
[1766161733291,5e-07,88512.0,88499.0,0.07347736]
[1766161733429,5e-07,88512.0,88499.0,0.00568]
[1766161733962,5e-07,88512.0,88499.0,0.01697956]
[1766161734145,5e-07,88512.0,88500.0,0.01129943]
[1766161734342,5e-07,88512.0,88501.0,0.0677955]
[1766161734574,5e-07,88512.0,88507.0,0.0025]
[1766161734738,5e-07,88512.0,88506.0,0.01129866]
[1766161734739,5e-07,88512.0,88509.0,0.0025]
[1766161735181,5e-07,88512.0,88509.0,0.01379828]
[1766161735346,5e-07,88512.0,88509.0,0.0025]
[1766161735547,5e-07,88512.0,88509.0,0.07028957]
[1766161736165,5e-07,88512.0,88509.0,0.0025]